Cogmind - Beta 16 @@@ ROGUE MODE // 2026.01.18 @ 17:36:53 Player: K0T Result: Destroyed by G-34 Mercenary with Small Laser Performance ------------- Evolutions (0) 0 Regions Visited (1) 200 Robots Destroyed (21) 105 Value Destroyed (453) 453 Prototype IDs (0) 0 Alien Tech Used (0) 0 Bonus (0) 0 TOTAL SCORE: 758 Bonus ------- None Cogmind --------- Core Integrity 0/250 Matter 117/300 Energy 125/125 System Corruption 0% Temperature Warm (140) Movement Treading (320) Ox2 Location -10/Materials Parts ------- > --- POWER (1) -------- Light Ion Engine > --- PROPULSION (2) --- Light Treads Light Treads > --- UTILITY (2) ------ Huge Storage Unit Structural Scanner > --- WEAPON (2) ------- Medium Laser > --- INVENTORY (25) --- Light Ion Engine Light Treads Light Treads Light Treads Light Treads Light Treads Small Storage Unit Targeting Computer Peak State ------------ > --- POWER ------------ Ion Engine > --- PROPULSION ------- Light Treads Light Treads > --- UTILITY ---------- Small Storage Unit Structural Scanner > --- WEAPON ----------- Medium Laser Light Assault Rifle > --- INVENTORY -------- Light Ion Engine Huge Storage Unit EM Pulse Gun [Rating: 7] Favorites ----------- Power Light Ion Engine Engine Light Ion Engine Propulsion Light Treads Treads Light Treads Flight Unit Flight Unit Utility Structural Scanner Device Structural Scanner Storage Small Storage Unit Weapon Medium Laser Energy Gun Medium Laser Ballistic Gun Light Assault Rifle Build | -11 -10 ------- Run | Yrd Mat Slots Evolved . | . . Power . | . . Propulsion . | . . Utility . | . . Weapon . | . . Parts Attached 15 | 6 9 Power 3 | 1 2 Engine 3 | 1 2 Core . | . . Reactor . | . . Propulsion 6 | 2 4 Treads 4 | 2 2 Leg . | . . Wheel . | . . Hover . | . . Flight 2 | . 2 Utility 3 | 1 2 Device 1 | . 1 Storage 2 | 1 1 Processor . | . . Hackware . | . . Protection . | . . Artifact . | . . Weapon 3 | 2 1 Energy Gun 2 | 1 1 Energy Cannon . | . . Ballistic Gun 1 | 1 . Ballistic Cannon . | . . Launcher . | . . Special Weapon . | . . Impact Weapon . | . . Slashing Weapon . | . . Piercing Weapon . | . . Special Melee Weapon . | . . Unidentified Prototypes . | . . Parts Lost 3 | . 3 Power . | . . Propulsion 2 | . 2 Utility . | . . Weapon 1 | . 1 Highest Loss Streak 3 | . 3 To Critical Strikes . | . . Average Backups 4 | 2 4 Power 1 | . 1 Propulsion 1 | . 1 Utility 1 | . 1 Weapon . | 1 . Tool/Special . | . . Unused Backups 6 | . 6 Power . | . . Propulsion 5 | . 5 Utility 1 | . 1 Weapon . | . . Tool/Special . | . . Average Slot Usage (%) 92 | . 92 Engine 13 | . 13 Treads 17 | . 17 Flight 8 | . 8 Device 12 | . 12 Storage 14 | . 14 Energy Gun 21 | . 21 Ballistic Gun 3 | . 3 Peak Build Rating 7 | 6 7 Average Rating 6 | 3 6 On Entrance 3 | . 6 Avg Prop Armor Cover (%) . | . . Naked Turns . | . . Heaviest Build 88 | 13 88 Greatest Support 40 | 40 40 Greatest Overweight (x) 4 | 1 4 Average Overweight (x) 1 | . 1 Largest Inventory Capacity 25 | 8 25 Average Capacity 13 | 7 14 Most Carried 9 | 7 9 Average Carried 4 | 2 4 Final Capacity 25 | 8 25 Final Carried 8 | 2 8 Class Distribution -------------------- 100% | Mutant Dominant Class ---------------- Mutant | -10/Materials Resources | -11 -10 ----------- Run | Yrd Mat Matter Collected 291 | 117 174 Remotely . | . . Salvage Created 598 | . 598 Parts 38 | . 38 Haulers Intercepted 1 | . 1 Recyclers Shooed 1 | . 1 Parts Field Recycled . | . . Retrieved Matter . | . . Parts Self-Destructed . | . . Prevented . | . . Parts Restored . | . . Kills | -11 -10 ------- Run | Yrd Mat Combat Hostiles Destroyed 15 | . 15 Guns 15 | . 15 Classes Destroyed 7 | . 7 Worker 1 | . 1 Hauler 1 | . 1 Mechanic 1 | . 1 Operator 2 | . 2 Watcher 1 | . 1 Swarmer 6 | . 6 Grunt 9 | . 9 Best Kill Streak 6 | . 6 Combat Bots Only 5 | . 5 Max Kills in Single Turn 1 | . 1 Gunslinging . | . . Exploded . | . . Melee . | . . Uniques/NPCs Destroyed . | . . Combat | -11 -10 -------- Run | Yrd Mat Hostile Shots Fired 107 | . 107 Missed 17 | . 17 Hits 90 | . 90 Projectile 90 | . 90 Critical Strikes 1 | . 1 Damage Taken 866 | . 866 Core 253 | . 253 Absorbed by Shields . | . . Core Remaining (%) 100 | 100 . Volleys Fired 82 | . 82 Largest 2 | . 2 Hottest 90 | . 90 Shots Fired 131 | . 131 Gun 131 | . 131 Cannon . | . . Launcher . | . . Special . | . . Kinetic 40 | . 40 Thermal 77 | . 77 Explosive . | . . Electromagnetic 14 | . 14 Robot Hit Streak 11 | . 11 Robot Miss Streak 9 | . 9 Penetration Max . | . . Secondary Targets . | . . Shots Hit Robots 82 | . 82 Core Hits 37 | . 37 Critical Kills 1 | . 1 Critical Parts Destroyed . | . . Critical Strikes 5 | . 5 Burn 4 | . 4 Destroy 1 | . 1 Melee Attacks . | . . Impact . | . . Slashing . | . . Piercing . | . . Sneak Attacks . | . . Combat Hostiles . | . . Follow-up Attacks . | . . Damage Inflicted 1003 | . 1003 Guns 1003 | . 1003 Cannons . | . . Explosions . | . . Melee . | . . Ramming . | . . Kinetic 197 | . 197 Thermal 682 | . 682 Explosive . | . . Electromagnetic 124 | . 124 Impact . | . . Slashing . | . . Piercing . | . . Highest Corruption . | . . Average Corruption . | . . Corruption Purged . | . . Corruption Blocked . | . . Overload Shots . | . . Overflow Damage . | . . Projectiles . | . . Explosions . | . . Melee . | . . Knockbacks . | . . Impact . | . . Kinetic . | . . Secondary . | . . Self-Inflicted Damage . | . . Shots . | . . Rammed . | . . Targets Rammed . | . . Kicked . | . . Crushed . | . . Highest Temperature 425 | . 425 Average Temperature 132 | . 132 Received Heat Transfer 327 | . 327 Effects 6 | . 6 Shutdowns 1 | . 1 Interference 2 | . 2 Matter Decay 3 | . 3 Siege Activations . | . . Martial Activations . | . . Shielding Activations . | . . Robots Disrupted . | . . Combat Hostiles . | . . Robots Corrupted . | . . Combat Hostiles . | . . Parts Fried . | . . Impact Corruptions . | . . Robots Melted . | . . Combat Hostiles . | . . Parts Melted 1 | . 1 Heat Transferred 2257 | . 2257 Parts Sabotaged . | . . Parts Stolen . | . . Parts Stripped . | . . Power Chain Reactions . | . . Alert | -11 -10 ------- Run | Yrd Mat Maximum Alert Level . | . . Low Security (%) 100 | 100 100 Level 1 . | . . Level 2 . | . . Level 3 . | . . Level 4 . | . . Level 5 . | . . High Security . | . . Max Security . | . . Peak Influence 169 | . 169 Initial . | . . Average 59 | . 62 Influence Increases 466 | . 466 Destroy 0b10 Robot/C 300 | . 300 Destroy 0b10 Robot/NC 30 | . 30 Destroy Leader 74 | . 74 Successful Hack 17 | . 17 Select Force Hacks 30 | . 30 Disable Machine 15 | . 15 Influence Decreases 404 | . 404 Time Decay 374 | . 374 Lost Part 30 | . 30 Squads Dispatched 4 | . 4 Investigation 2 | . 2 Extermination . | . . Reinforcement 2 | . 2 Assault . | . . Garrison . | . . Intercept . | . . Searches Triggered . | . . Construction Impeded . | . . Haulers Reinforced . | . . Active Scanning Responses . | . . Cargo Convoy Interrupts . | . . Stealth | -11 -10 --------- Run | Yrd Mat Distress Signals 2 | . 2 Communications Jammed . | . . Distress Signals . | . . Times Spotted 34 | . 34 Peak Tracking Total 5 | . 5 Tactical Retreats . | . . Traps | -11 -10 ------- Run | Yrd Mat Traps Triggered 4 | . 4 Indirectly . | . . Trap Hack Attempts . | . . Triggered . | . . Disarmed . | . . Reprogrammed . | . . Reused . | . . Traps Extracted . | . . Installed . | . . Triggered . | . . Machines | -11 -10 ---------- Run | Yrd Mat Machines Disabled 1 | . 1 Max in Single Turn 1 | . 1 Machines Repaired . | . . Machines Dismantled . | . . Machines Sabotaged . | . . Overloaded Fab Kills . | . . Hacking | -11 -10 --------- Run | Yrd Mat Machines Accessed 7 | . 7 Terminals 6 | . 6 Fabricators . | . . Repair Stations . | . . Recycling Units 1 | . 1 Scanalyzers . | . . Garrison Access . | . . Total Hacks 19 | . 19 Successful 12 | . 12 Failed 6 | . 6 Catastrophic . | . . Database Lockouts 1 | . 1 Manual 16 | . 16 Terminals 15 | . 15 Fabricators . | . . Repair Stations . | . . Recycling Units 4 | . 4 Scanalyzers . | . . Garrison Access . | . . Terminal Hacks 1 | . 1 Robot Analysis 1 | . 1 Fabricator Hacks . | . . Repair Station Hacks . | . . Recycling Unit Hacks 1 | . 1 Retrieve Components 1 | . 1 Scanalyzer . | . . Garrison Access Hacks . | . . Unauthorized Hacks 10 | . 10 Terminals 9 | . 9 Botnet 4 | . 4 Skim 5 | . 5 Fabricators . | . . Repair Stations . | . . Recycling Units 1 | . 1 Tunnel 1 | . 1 Scanalyzers . | . . Garrison Access . | . . Data Cores Recovered . | . . Used . | . . Hacking Detections 5 | . 5 Full Trace Events . | . . Feedback Events . | . . Feedback Blocked . | . . Robot Schematics Acquired . | . . Robots Built . | . . Authchips . | . . Time . | . . Total Robot Build Rating . | . . Part Schematics Acquired . | . . Parts Built . | . . Authchips . | . . Time . | . . Total Part Build Rating . | . . Part Studies Acquired . | . . Parts Repaired . | . . Time . | . . Parts Recycled . | . . Recycled Matter . | . . Retrieved Matter . | . . Retrieved Components 9 | . 9 Parts Scanalyzed . | . . Part Schematics Acquired . | . . Parts Damaged . | . . Bothacking | -11 -10 ------------ Run | Yrd Mat Used RIF Installer . | . . Robots Hacked . | . . Non-combat . | . . Combat . | . . Robot Hacks Applied . | . . Relay Couplers Released . | . . Fabnet Peak Effective % . | . . Robots Rewired . | . . Allies Hacked . | . . Hacks Repelled . | . . Allies | -11 -10 -------- Run | Yrd Mat Total Allies . | . . Largest Group . | . . Highest-Rated Group . | . . Highest-Rated Ally . | . . Total Orders . | . . Ally Attacks . | . . Total Damage . | . . Kills . | . . Allies Corrupted . | . . Allies Melted . | . . Intel | -11 -10 ------- Run | Yrd Mat Active Infowar (turns) 951 | . 951 Structural 951 | . 951 Robot Analysis Total 1 | . 1 Derelict Logs Recovered . | . . Drone Launches . | . . Drone Recoveries . | . . Exploration | -11 -10 ------------- Run | Yrd Mat Turns Passed 1096 | 58 1038 Spaces Moved 471 | 45 426 Core 39 | 29 10 Treads 203 | 16 187 Legs . | . . Wheels . | . . Hover . | . . Flight 229 | . 229 Fastest Speed 50 | 50 117 Average Speed 169 | 95 177 Slowest Speed 320 | 160 320 Overloaded Moves . | . . Propulsion Burnouts . | . . Robots Hopped . | . . Potential Cave-ins . | . . Cave-ins Triggered . | . . Exploration Rate (%) 37 | 4 71 Regions Visited 1 Branch Regions . Pre-discovered Areas 2 | . 2 Known Exits Taken . | . . Unknown Exits Taken 1 | 1 . Scrap Searched . | . . Spaces Dug . | . . Terrain Destroyed . | . . Melee . | . . Projectile . | . . AOE . | . . Terrain Rammed . | . . Walls Destroyed . | . . Machines Disabled . | . . Actions | -11 -10 --------- Run | Yrd Mat Total 644 | 60 584 Wait 47 | 3 44 Move 470 | 44 426 Hop . | . . Pick Up 24 | 7 17 Fast Attach 1 | 1 . Attach 15 | 5 10 Detach . | . . Swap 2 | . 2 Drop 3 | . 3 Fire 82 | . 82 Melee . | . . Ram . | . . Kick . | . . Crush . | . . Escape Stasis . | . . Rewire . | . . Trap . | . . Miscellaneous . | . . Route ------- -11/Scrapyard -10/Materials (discovered 3 exits: *Mat x2 / [*Sub]) History --------- Turn | Location | Event 6 | -11/Scrapyard | Discovered new exit (range 14) 59 | -11/Scrapyard | Entered Materials 72 | -10/Materials | Central database locked down 274 | -10/Materials | Core integrity fell below 50% 300 | -10/Materials | Build established: Mutant 329 | -10/Materials | Core integrity fell below 20% 359 | -10/Materials | Lost 3 parts (2n1w) 454 | -10/Materials | Discovered new exit (range 7) 713 | -10/Materials | Learned Storage security intel 759 | -10/Materials | Learned 2 Mines zone layouts 823 | -10/Materials | Loaded intel: 8 terminal locations 839 | -10/Materials | Identified exit to Materials 844 | -10/Materials | Learned location of 1 exit from Storage 861 | -10/Materials | Discovered new exit (range 11) 1097 | -10/Materials | Destroyed by G-34 Mercenary with Small Laser Last Messages --------------- Heat Sink Lgt. Assault Rifle Lgt. Ion Engine Aluminum Leg Aluminum Leg Lgt. Assault Rifle Aluminum Leg Sml. Laser 01027_ Connecting with Recycling Unit... >>Force(Tunnel) DISCOVERED[-3/Research] 01027_ ALERT: Suspicious activity at Recycling Unit M001. Dispatching Investigation squad. 01057_ K-01 Serf cleans the Atomic Centrifuge. 01085_ G-34 Mercenary destroyed. 01087_ G-34 Mercenary suffers critical hit (Burn). 01091_ G-34 Mercenary destroyed. 01094_ R-06 Scavenger collects Heat Sink. Map ----- +----------------------------------------------------+ | | | ?????????????????????????????????????????????????? | | ?????????????????????????????????????????????????? | | ?????????????????????????????????????????????????? | | ?????????????????????????????????????????????????? | | ?????????????????????????????????????????????????? | | ?????????????????????#####???????????????????????? | | ?????????????????????# ##########??????????????? | | ??????????????#??????# # #??????????????? | | ??????????????# ?????# # """ #??????????????? | | ??????????????# ###### # """ #??????????????? | | ??????????????# # """ #??????????????? | | ??????????????+ + #??????????????? | | ??????????????# # "" #??????######### | | ????????????? # # "T #??????######### | | ????????????? # """ # "" #??????## | | ????????????? # """ # #??????## | | ???????+####### """ ##########??????## =% | | ????## ####### #???????????????## == / | | ????## ###############?## | | ###### ! ###############?## | | ###### != ^##?## ! | | != ##?## ! | | g ^##?######+## | | " % "T" ^##?##### | | " ######### @ =% ^######## | | #! ########## r ######### | | # """ ########## # ! ## | | " #! "T" ##??????## # = ## | | "" # ########## + !="" ## | | " ##+############## # =[Y" ## | | """ """ # [["" ##**! | | " """ # *[ ##*!! | | """ #########*!! | | """ ######### | | ####### %#######T########## """ ######### | | ## %########## ## % % ######### | | ! ## ##########??????## % %% %% "" | | ## ########## ???? ## % "" | | ## # #<# ???? # # " | | ##^^^ # ## ???? # ######## | | ## # ##????" + " ######## | | ## # ##???"" # ##????## # | | + ##???"" # ##????## # | | ######## # ##????? ## ###????## # | | ##########+# ###????? ## ###????## T | | ?## ! # ####??????## ##?????## # | | ?##""" # #######???????## ? ##?????####### # | | ?##""" ########????????????????????####### # | | ?##""" ##?????????????????????????#?????## # | +----------------------------------------------------+ Best States ------------- Heat Dissipation 25 Energy Generation 10 Energy Capacity 250 Matter Stores 238 Matter Capacity 300 Sight Range 16 Terrain Scan Density 10 Evasion (%) 50 Recoil Reduction 2 Item Schematics ----------------- None Robot Schematics ------------------ None Fabricated ------------ Nothing Repaired ---------- Nothing Studied --------- None Alien Tech Used ----------------- None Achievements -------------- None Challenges ------------ None Game ------ Seed SalvageCatalystLegs Manual? 0 Play Time 00:10:27 Cumulative 147.2 hours Start 2026.01.18 @ 17:28:45 End 2026.01.18 @ 17:36:53 Sessions 1 Manual Loads 0 Difficulty Rogue Special Mode None Game No. 84 Rogue 71 Adventurer 13 Explorer 0 Win Type - Total 1 Types 1/0/0/0/0/0/0/0/0/0 Lore% 41 Gallery% 39 Achievement% 25 Wizard Run 0 Options --------- Layout 1 ASCII 0 Keyboard 0 Movement Arrows Keybinds 0 Fullscreen 1 Font 24/Smallcaps Map View 50x35 Zoom Use 0% Tactical HUD 1 Map Filters NONE Filters NONE Steam 0 RUN: 07c3f811-c140-46f2-a677-c5525a7d4f48